{"text_format":"1","workbook":"xlsx","n_sheets":3,"sheets":["simulador_greening","Reduções","Lista de Culturas e SIE"],"not_rendered":{"charts":0,"images":2,"macros":1,"external_links":0,"defined_names":3,"comments":2,"pivot_tables":0},"unopened":[],"bounds":{"document_bytes":16777216,"sheet_cells":100000,"rows_first":2000,"rows_last":500,"rows_between":2000,"halvings":0,"cell_chars":16384,"cell_head_chars":4096},"cells_cut":0,"cells_raw":0,"read":"whole","date_system":"1900"}

{"sheet":"simulador_greening","index":0,"n_rows":113,"n_cols":29,"rows_kept":113,"cut":false,"hidden":false,"merged":[[19,6,21,10],[16,6,18,11],[112,0,114,11],[72,0,72,11],[1,2,1,11],[69,2,69,10],[70,2,70,10],[3,0,6,11],[41,0,41,11],[52,1,52,10],[10,2,10,4],[90,5,90,10],[55,3,55,10],[12,6,13,10],[14,6,15,10],[57,5,58,7]]}
[]
[null,null,"Versão  2016"]
[null,null,null,null,null,null,null,null,null,null,null,null,null,null,null,null,null,null,"terra arável =10--> já não está isento de diversificação"]
["Simulador de cumprimento de Práticas Agrícolas Benéficas para o Clima e Ambiente (Greening)\n(Apenas para casos de Diversificação de culturas e Superfícies de interesse ecológico)"]
[]
[]
[]
[null,null,null,null,null,null,null,null,null,null,null,null,"colunas a ocultar"]
[null,"Descrição da Exploração",null,null,null,null,null,null,null,null,null,null,null,null,null,null,null,null,"tabelas a ocultar",null,null,null,null,null,"lista pendente"]
[null,"Indique o nº de direitos que dispôe ao Regime de pagamento Base",null,null,null,null,null,null,null,null,null,null,"(têm formulas)",null,null,null,null,null,"códigos da verificação de diversificação/EFA",null,null,null,null,"P","Pousio"]
["Culturas",null,null,null,null,null,null,null,null,null,null,null,"valid duplicados:  1= não dup ;2=dup",null,null,null,null,null,"código","descrição",null,null,null,"A","Arroz"]
[null,"Discriminação das culturas em Terra Arável","Tipo/Grupo cultural","Descrição Cultura \n(Ver lista de culturas)","Área","Área p/efeitos de cumprimento de SIE (após aplicação dos fatores de ponderação)","observações:",null,null,null,null,null,"area","pousio","Arroz","Herbáceas","?",null,0,"Obrigação de diversificação",null,null,null,"H","Herbáceas"]
[null,"Área Cultura 1",null,null,null,{"$f":"IF(C13=$Y$14,  E13*0.7,            IF(C13=$Y$10,E13,0))","v":0},"Herbáceas  - corresponde a ervas e outras herbáceas ",null,null,null,null,null,{"$f":"+IF(COUNTIF($E$13:E13,E13)>1,2,1)","v":1},{"$f":"+IF(COUNTIF($C$13:C13,\"Pousio\")>1,2,1)","v":1},{"$f":"+IF(COUNTIF($C$13:C13,\"Arroz\")>1,2,1)","v":1},{"$f":"+IF(COUNTIF($C$13:C13,\"Herbáceas\")>1,2,1)","v":1},null,null,1,"Isento de diversificação",null,null,null,"O","Outras culturas"]
[null,"Área Cultura 2",null,null,null,{"$f":"IF(C14=$Y$14,  E14*0.7,            IF(C14=$Y$10,E14,0))","v":0},null,null,null,null,null,null,{"$f":"+IF(COUNTIF($E$13:E14,E14)>1,2,1)","v":1},{"$f":"+IF(COUNTIF($C$13:C14,\"Pousio\")>1,2,1)","v":1},{"$f":"+IF(COUNTIF($C$13:C14,\"Arroz\")>1,2,1)","v":1},{"$f":"+IF(COUNTIF($C$13:C14,\"Herbáceas\")>1,2,1)","v":1},null,null,null,null,null,null,null,"az","Culturas fixadoras de azoto"]
[null,"Área Cultura 3",null,null,null,0,"Culturas Fixadoras Azoto (ervilha, ervilhaca, serradela, trevos, fava, tremoço, tremocilha, grão de bico, feijão, luzerna e amendoim)",null,null,null,null,null,{"$f":"+IF(COUNTIF($E$13:E15,E15)>1,2,1)","v":1},{"$f":"+IF(COUNTIF($C$13:C15,\"Pousio\")>1,2,1)","v":1},{"$f":"+IF(COUNTIF($C$13:C15,\"Arroz\")>1,2,1)","v":1},{"$f":"+IF(COUNTIF($C$13:C15,\"Herbáceas\")>1,2,1)","v":1},null,null,null,null,null,null,null,"LG","Leguminosas"]
[null,"Área Cultura 4",null,null,null,0,null,null,null,null,null,null,{"$f":"+IF(COUNTIF($E$13:E16,E16)>1,2,1)","v":1},{"$f":"+IF(COUNTIF($C$13:C16,\"Pousio\")>1,2,1)","v":1},{"$f":"+IF(COUNTIF($C$13:C16,\"Arroz\")>1,2,1)","v":1},{"$f":"+IF(COUNTIF($C$13:C16,\"Herbáceas\")>1,2,1)","v":1}]
[null,"Área Cultura 5",null,null,null,0,"Leguminosas -todas as leguminosas exceto as indicadas no grupo  C. fixadoras de azoto)",null,null,null,null,null,{"$f":"+IF(COUNTIF($E$13:E17,E17)>1,2,1)","v":1},{"$f":"+IF(COUNTIF($C$13:C17,\"Pousio\")>1,2,1)","v":1},{"$f":"+IF(COUNTIF($C$13:C17,\"Arroz\")>1,2,1)","v":1},{"$f":"+IF(COUNTIF($C$13:C17,\"Herbáceas\")>1,2,1)","v":1}]
[null,"Área Cultura 6",null,null,null,0,null,null,null,null,null,null,{"$f":"+IF(COUNTIF($E$13:E18,E18)>1,2,1)","v":1},{"$f":"+IF(COUNTIF($C$13:C18,\"Pousio\")>1,2,1)","v":1},{"$f":"+IF(COUNTIF($C$13:C18,\"Arroz\")>1,2,1)","v":1},{"$f":"+IF(COUNTIF($C$13:C18,\"Herbáceas\")>1,2,1)","v":1}]
[null,"Área Cultura 7",null,null,null,0,null,null,null,null,null,null,{"$f":"+IF(COUNTIF($E$13:E19,E19)>1,2,1)","v":1},{"$f":"+IF(COUNTIF($C$13:C19,\"Pousio\")>1,2,1)","v":1},{"$f":"+IF(COUNTIF($C$13:C19,\"Arroz\")>1,2,1)","v":1},{"$f":"+IF(COUNTIF($C$13:C19,\"Herbáceas\")>1,2,1)","v":1}]
[null,"Área Cultura 8",null,null,null,0,"Outras Culturas : todas as outras culturas temporárias em terra arável que não sejam: arroz, herbáceas,  culturas fixadoras de azoto e outras leguminosas",null,null,null,null,null,{"$f":"+IF(COUNTIF($E$13:E20,E20)>1,2,1)","v":1},{"$f":"+IF(COUNTIF($C$13:C20,\"Pousio\")>1,2,1)","v":1},{"$f":"+IF(COUNTIF($C$13:C20,\"Arroz\")>1,2,1)","v":1},{"$f":"+IF(COUNTIF($C$13:C20,\"Herbáceas\")>1,2,1)","v":1}]
[null,"Área Cultura 9",null,null,null,0,null,null,null,null,null,null,{"$f":"+IF(COUNTIF($E$13:E21,E21)>1,2,1)","v":1},{"$f":"+IF(COUNTIF($C$13:C21,\"Pousio\")>1,2,1)","v":1},{"$f":"+IF(COUNTIF($C$13:C21,\"Arroz\")>1,2,1)","v":1},{"$f":"+IF(COUNTIF($C$13:C21,\"Herbáceas\")>1,2,1)","v":1}]
[null,"Área Cultura 10",null,null,null,0,null,null,null,null,null,null,{"$f":"+IF(COUNTIF($E$13:E22,E22)>1,2,1)","v":1},{"$f":"+IF(COUNTIF($C$13:C22,\"Pousio\")>1,2,1)","v":1},{"$f":"+IF(COUNTIF($C$13:C22,\"Arroz\")>1,2,1)","v":1},{"$f":"+IF(COUNTIF($C$13:C22,\"Herbáceas\")>1,2,1)","v":1}]
[null,"Resumo Terra Arável (para efeitos de calculos de isenções)",null,null,null,null,null,null,null,null,null,null,null,null,null,null,null,null,null,null,null,null,null,null,"mudei de maior ou igual para maior"]
[null,"Área culturas fixadoras de Azoto",null,null,{"$f":"SUMIF(C$13:C$22,\"Culturas fixadoras de azoto\",E$13:E$22)","v":0}]
[null,"Área cultura Arroz",null,null,{"$f":"SUMIF(C$13:C$22,\"Arroz\",E$13:E$22)","v":0}]
[null,"Área de Pousio",null,null,{"$f":"SUMIF(C$13:C$22,\"Pousio\",E$13:E$22)","v":0},null,null,null,null,null,null,null,null,null,null,null,null,null,null,null,null,null,null,"ordem","Área Culturas para diversificação cultural","Descrição cultura","1 verificação 44(2)","percentagem","2 verificação 44(2)"]
[null,"Área para produção de erva  ou herbáceas",null,null,{"$f":"SUMIF(C$13:C$22,\"Herbáceas\",E$13:E$22)","v":0},null,null,null,null,null,null,null,null,null,null,null,null,null,null,"SE($M$60=75;SE(OU(C13=\"Pousio\";C13=\"Herbáceas\");0;E13);E13)",null,null,null,{"$f":"_xlfn.RANK.EQ(AC27,$AC$27:$AC$34)","v":{"$error":"#DIV/0!"}},{"$f":"+IF(AND($M$59>0.75,C13=\"Herbáceas\"),0,IF(AND($M$58 >0.75,C13=\"Pousio\"),0, E13))","v":0},{"$f":"+C13","v":0},{"$f":"IF(AND(Y27>0,Z27=\"Pousio\",$N$58>0.75),0,IF(AND(Y27>0,Z27=\"Herbáceas\",$N$59>0.75),0,Y27))","v":{"$error":"#DIV/0!"}},{"$f":"IFERROR(+AA27/AA$37,0)","v":0},{"$f":"IF(AND(AA27>0,Z27=\"Pousio\",AB27>0.75),0,IF(AND(AA27>0,Z27=\"Herbáceas\",AB27>0.75),0,AA27))","v":{"$error":"#DIV/0!"}}]
[null,"Área outras Culturas",null,null,{"$f":"SUMIF(C$13:C$22,\"Outras culturas\",E$13:E$22)+SUMIF(C$13:C$22,\"\",E$13:E$22)","v":0},null,null,null,null,null,null,null,null,null,null,null,null,null,null,"se erva ou pousio (individualmente) forem superiores a 75% da TA, as areas de pousio ou erva são descontadas do calculo",null,null,null,{"$f":"_xlfn.RANK.EQ(AC28,$AC$27:$AC$34)","v":{"$error":"#DIV/0!"}},{"$f":"+IF(AND($M$59>0.75,C14=\"Herbáceas\"),0,IF(AND($M$58 >0.75,C14=\"Pousio\"),0, E14))","v":0},{"$f":"+C14","v":0},{"$f":"IF(AND(Y28>0,Z28=\"Pousio\",$N$58>0.75),0,IF(AND(Y28>0,Z28=\"Herbáceas\",$N$59>0.75),0,Y28))","v":{"$error":"#DIV/0!"}},{"$f":"IFERROR(+AA28/AA$37,0)","v":0},{"$f":"IF(AND(AA28>0,Z28=\"Pousio\",AB28>0.75),0,IF(AND(AA28>0,Z28=\"Herbáceas\",AB28>0.75),0,AA28))","v":{"$error":"#DIV/0!"}}]
[null,"Área Leguminosas (exceto fixadoras de azoto)",null,null,{"$f":"SUMIF(C$13:C$22,\"Leguminosas\",E$13:E$22)","v":0},null,null,null,null,null,null,null,null,null,null,null,null,null,null,null,null,null,null,{"$error":"#DIV/0!"},{"$f":"+IF(AND($M$59>0.75,C15=\"Herbáceas\"),0,IF(AND($M$58 >0.75,C15=\"Pousio\"),0, E15))","v":0},0,{"$f":"IF(AND(Y29>0,Z29=\"Pousio\",$N$58>0.75),0,IF(AND(Y29>0,Z29=\"Herbáceas\",$N$59>0.75),0,Y29))","v":{"$error":"#DIV/0!"}},0,{"$error":"#DIV/0!"}]
[null,"Soma Área de Terra Arável",null,null,{"$f":"+SUM(E24:E29)","v":0},null,null,null,null,null,null,null,{"$f":"+IF(OR(E30<10,E30-E25=0),1,0)","v":1},null,null,null,null,null,null,null,null,null,null,{"$error":"#DIV/0!"},{"$f":"+IF(AND($M$59>0.75,C16=\"Herbáceas\"),0,IF(AND($M$58 >=0.75,C16=\"Pousio\"),0, E16))","v":0},0,{"$error":"#DIV/0!"},0,{"$error":"#DIV/0!"}]
[null,"Área Pastagens Permanentes",null,null,null,null,null,null,null,null,null,null,null,null,null,null,null,null,null,null,null,null,null,{"$error":"#DIV/0!"},{"$f":"+IF(AND($M$59>0.75,C17=\"Herbáceas\"),0,IF(AND($M$58 >=0.75,C17=\"Pousio\"),0, E17))","v":0},0,{"$error":"#DIV/0!"},0,{"$error":"#DIV/0!"}]
[null,"Área de Culturas Permanentes",null,null,null,null,null,null,null,null,null,null,null,null,null,null,null,null,null,null,null,null,null,{"$error":"#DIV/0!"},{"$f":"+IF(AND($M$59>0.75,C18=\"Herbáceas\"),0,IF(AND($M$58 >=0.75,C18=\"Pousio\"),0, E18))","v":0},0,{"$error":"#DIV/0!"},0,{"$error":"#DIV/0!"}]
[null,null,null,null,null,null,null,null,null,null,null,null,null,null,null,null,null,null,null,null,null,null,null,{"$error":"#DIV/0!"},{"$f":"+IF(AND($M$59>0.75,C19=\"Herbáceas\"),0,IF(AND($M$58 >=0.75,C19=\"Pousio\"),0, E19))","v":0},0,{"$error":"#DIV/0!"},0,{"$error":"#DIV/0!"}]
[null,"Superfície Agrícola Elegível",null,null,{"$f":"+E30+E31+E32","v":0},null,null,null,null,null,null,null,null,null,null,null,null,null,null,null,null,null,null,{"$error":"#DIV/0!"},{"$f":"+IF(AND($M$59>0.75,C20=\"Herbáceas\"),0,IF(AND($M$58 >=0.75,C20=\"Pousio\"),0, E20))","v":0},0,{"$error":"#DIV/0!"},0,{"$error":"#DIV/0!"}]
["Superficies de interesse Ecológico",null,null,null,null,null,null,null,null,null,null,null,null,null,null,null,null,null,null,null,null,null,null,{"$error":"#DIV/0!"},{"$f":"+IF(AND($M$59>0.75,C21=\"Herbáceas\"),0,IF(AND($M$58 >=0.75,C21=\"Pousio\"),0, E21))","v":0},0,{"$error":"#DIV/0!"},0,{"$error":"#DIV/0!"}]
[null,"Elementos lineares da orizicultura,  galerias ripicolas, Bosquetes",null,null,null,{"$f":"+E36","v":0},null,null,null,null,null,null,null,null,null,null,null,null,null,null,null,null,null,{"$error":"#DIV/0!"},{"$f":"+IF(AND($M$59>=0.75,C22=\"Herbáceas\"),0,IF(AND($M$58 >=0.75,C22=\"Pousio\"),0, E22))","v":0},0,{"$error":"#DIV/0!"},0,{"$error":"#DIV/0!"}]
[null,"Culturas fixadoras de Azoto declaradas como herbáceas (Luzerna e Tremocilha)",null,null,null,{"$f":"+E37*0.7","v":0},null,null,null,null,null,null,{"$f":"+E40/E30","v":{"$error":"#DIV/0!"}},null,null,null,null,null,null,null,null,null,null,"total",{"$f":"SUM(Y27:Y36)","v":0},null,{"$f":"SUM(AA27:AA36)","v":{"$error":"#DIV/0!"}},null,{"$f":"SUM(AC27:AC36)","v":{"$error":"#DIV/0!"}}]
[null,"Hectares Agro florestais  (alínea d, nº 25 da Portaria 57/2015)",null,null,null,{"$f":"+E38","v":0},null,null,null,null,null,null,null,null,null,null,null,null,null,null,null,null,null,null,null,null,{"$f":"+Y37-AA37","v":{"$error":"#DIV/0!"}}]
[null,"Florestação de Terras agrícolas , no âmbito dos programas de Desenvolvimento Rural",null,null,null,0]
[null,"Total de superfícies de interesse ecológico (após aplicação dos coeficientes)",null,null,{"$f":"+E36+E26+ (E37*0.7)+(E24*0.7)+E38+E39","v":0},null,null,null,null,null,null,null,null,null,null,null,null,null,null,null,null,null,null,"ate 24/2/2015","+SE(E($M$59>=0,75;C22=\"Herbáceas\");0;SE(E($M$58 >=0,75;C22=\"Pousio\");0; E22))"]
[null,null,null,null,null,null,null,null,null,null,null,null,null,null,null,null,null,null,null,null,null,null,null,"notas"]
["Diversificação de culturas ",null,null,null,null,null,null,null,null,null,null,null,null,null,null,null,null,null,null,null,null,null,null,"se tiver isenção de limiar, retira herbaceas e pousio e faz calculo com as terras remanescentes"]
["Verificação de existência de isenção de diversificação (se a superfície da Terra arável for superior a 10 ha)"]
[null,"% da produção de erva ou outras forrageiras herbáceas na terra arável",null,null,{"$f":"IF(E30>=10,+E$27/E$30,0)","v":0}]
[null,"% da superfície em pousio nas terras aráveis",null,null,{"$f":"IF(E30>=10,E$26/E$30,0)","v":0}]
[null,"% da combinação das duas utilizações",null,null,{"$f":"+E44+E45","v":0},"Superficie arável remanescente p/outras utilizações",null,null,{"$f":"IF(E46>0.75, E30-(+E46*E30),\"N/A\")","v":"N/A"},null,null,null,{"$f":"IF(E30>=10,IF(E46>0.75,IF(E30-E27-E26>30,0,1),\"0\"),\"1\")","v":"1"}]
["ou"]
[null,"% dos prados permanentes superfície agrícola elegível",null,null,{"$f":"IF(E30>=10,+E$31/$E$34,0)","v":0}]
[null,"% das culturas de arroz na superfície agrícola elegível",null,null,{"$f":"+IF(E30>=10,+E$25/E$34,0)","v":0},null,null,null,null,null,null,null,{"$f":"+E25/E34","v":{"$error":"#DIV/0!"}}]
[null,"% da produção de erva ou outras forrageiras herbáceas na superfície agrícola elegível",null,null,{"$f":"+IF(E30>=10,+E$27/E$34,0)","v":0}]
[null,"% da combinação das utilizações acima",null,null,{"$f":"+E48+E49+E50","v":0},"Superficie arável remanescente p/outras utilizações",null,null,{"$f":"IF(E51>0.75,E34-(E51*E34)-E32,\"N/A\")","v":"N/A"},null,null,null,{"$f":"IF(E30>=10, IF(E51>0.75,IF(E34-(E51*E34)-E32>30,0,1),0),1)","v":1},null,{"$f":"+E34-E31-E32","v":0},null,null,null,{"$f":"+E30-E27-E26-E25","v":0}]
[]
[null,{"$f":"IF(OR(M30=1,OR(M46=1,M51=1)),\"Está isento das obrigações de diversificação cultural\",\"Tem que cumprir as obrigações de diversificação cultural\")","v":"Está isento das obrigações de diversificação cultural"}]
[]
[]
["Verificação da isenção de limiares de diversificação de culturas",null,null,"(Se a erva ou outras forrageiras herbáceas ou terras em pousio ocuparem mais de 75% das terras aráveis e o resto não for ocupado por erva ou outras forragens herbáceas ou terras em pousio, aplica-se o limiar de uma cultura)"]
[null,null,null,null,null,null,null,null,null,null,null,null,"44(2)","% sobre area remansescente sem erva ou pousio"]
[null,"% da área de pousio na área de terra arável",null,null,{"$f":"IFERROR(+E26/E30,\"\")","v":""},{"$f":"+F68","v":""},null,null,null,null,null,null,{"$f":"IF(AND(E58>0.75,(E28>0)), 75,0 )","v":0},{"$f":"IF(E58<=0.75,0,+E26/(E30-E27))","v":{"$error":"#DIV/0!"}},"pousio >75%"]
["ou","% da área de terra arável utilizada na produção de erva ou outras forrageiras herbáceas",null,null,{"$f":"IFERROR(+E27/E30,\"\")","v":""},null,null,null,null,null,null,null,{"$f":"IF(AND(E$59>0.75,(E$28>0)),75,0)","v":0},{"$f":"IF(E59<=0.75,0,+E27/(E30-E26))","v":{"$error":"#DIV/0!"}},"erva >75%"]
[null,null,null,null,{"$f":"IFERROR(+E58+E59,\"\")","v":""},"   Sup. arável restante (sem pousio ou herbáceas sup a 75%)",null,null,{"$f":"IF(B53=\"Está isento das obrigações de diversificação cultural\",\"N/A\",+IF(E58>0.75,+AA37,IF(E59>0.75,AA37,\"NA\")))","v":"N/A"},null,null,null,{"$f":"IF(AND(OR(E$58>0.75,E$59>0.75),(E$28+E$24>0)),75,0)","v":0},null,"75 -tem de  cumprir o limiar da 1 cultura em 75% (+75 % das terras aráveis utilizadas em erva ou pousio; 0 - não se aplica a isenção de limiar (n2 2 artº 44)",null,null,null,null,null,null,null,null,null,null,"SE.ERRO(+E30-((E30*E60));\"\")"]
["Cálculo do cumprimento da diversificação de culturas",null,null,null,null,null,null,null,null,null,null,null,null,"75% da terra .arav necess","excesso"]
[null,"Área Cultura principal",null,null,{"$f":"IF(B53=\"Está isento das obrigações de diversificação cultural\",\"\",IFERROR(VLOOKUP(1,$X$27:$AC$36,2,0),\"\"))","v":""},null,"% da cultura principal",null,null,null,{"$f":"IFERROR(+E62/E65,0)","v":0},null,{"$f":"+K62-0.75","v":-0.75},{"$f":"+E65*0.75","v":0},{"$f":"+E62-N62","v":{"$error":"#VALUE!"}},"não posso ter áreas exatamente iguais"]
[null,"Área da 2ª Cultura",null,null,{"$f":"IF(B53=\"Está isento das obrigações de diversificação cultural\",\"\",IFERROR(VLOOKUP(2,$X$27:$AC$36,2,0),0))","v":""},null,"% da 2 cultura",null,null,null,{"$f":"IFERROR(+E63/E65,0)","v":0}]
[null,"Área Restantes Culturas",null,null,{"$f":"IFERROR(+AC37-(E62+E63),\"\")","v":""},null,"soma das % das duas culturas principais",null,null,null,{"$f":"IFERROR(+K63+K62,0)","v":0},null,{"$f":"+K64-0.95","v":-0.95}]
[null,null,null,null,{"$f":"SUM(E62:E64)","v":0},null,"% das restantes culturas",null,null,null,{"$f":"IFERROR(+E64/E65,0)","v":0}]
[null,null,null,null,null,null,null,null,null,null,{"$f":"+K64+K65","v":0}]
[]
[null,"Nº de culturas necessárias para cumprir diversificação","------------------------------------------------------------------------->",null,{"$f":"IF(B53=\"tem que cumprir as obrigações de diversificação cultural\",IF(OR(E65<=30,E58>0.75,E59>0.75), 2,3),0)","v":0},{"$f":"IFERROR(IF(AND(M60=75,E68=2),\"(derrogação do  nº 2 do artº 44 do Reg 1307/2013)\",\"\"),\"\")","v":""},null,null,null,null,null,null,null,"afinar mensagem",{"$f":"IF(OR(E65>=30,E58>0.75,E59>0.75),2,3)","v":2}]
["Verificação Limiares"]
[null,"Cultura Principal até 75%",{"$f":"IF(E68=0,\"-\",IF(AND(E68>=2,K62>75%),\"A cultura principal  excede o limiar de 75% da terra arável em \"&ROUND(O62,2)&\" hectares\",\"Ok\"))","v":"-"},null,null,null,null,null,null,null,null,null,{"$f":"IF((AND(E68>0,K62>0.75)),0,1)","v":1}]
[null,"2 Culturas Principais",{"$f":"IF(E68=3,IF(K62+K63>0.95,\"A somas das % das duas culturas principais excede o limiar de 95% da terra arável em \"&ROUND(M64*E30,2)&\" hectares\",\"OK\"),\"N/A\")","v":"N/A"},null,null,null,null,null,null,null,null,null,{"$f":"IF(AND(E68=3,K62+K63>0.95),0,1)","v":1}]
[]
["Superfícies de interesse ecológico (SIE)"]
["Verificação de existência de isenção de manutenção de SIE"]
[null,"% da produção de erva ou outras forrageiras herbáceas na terra arável",null,null,{"$f":"IF(E30>15,E$27/E$30,\"\")","v":""},null,null,null,null,null,null,null,{"$f":"IFERROR(0,+E75*$E$30)","v":0},{"$f":"+E30-E27-E29-E26-E24<=30","v":true}]
[null,"% da superfície em pousio nas terras aráveis",null,null,{"$f":"IF(E30>15,E$26/E$30,\"\")","v":""},null,null,null,null,null,null,null,{"$f":"IFERROR(0,+E76*$E$30)","v":0}]
[null,"% cultura leguminosas",null,null,{"$f":"IF(E30>15,(E29+E24)/E30,\"\")","v":""},null,null,null,null,null,null,null,{"$f":"+E77*$E$30","v":{"$error":"#VALUE!"}}]
[null,"soma das duas percentagens",null,null,{"$f":"IFERROR(E75+E76+E77,\"\")","v":""},"Superficie arável remanescente p/outras utilizações",null,null,{"$f":"IFERROR(IF(E78>0.75,E30-(+E78*E30),\"N/A\"),\"N/D\")","v":"N/D"},null,null,null,{"$f":"IF(AND(E$30>15,E78>0.75,E30-E27-E29-E26-E24<=30),\"isento\",IF(E30<=15,\"isento\",\"não isento\"))","v":"isento"}]
["ou"]
[null,"% dos prados permanentes superfície agrícola elegível",null,null,{"$f":"IF(E30>15,E$31/$E$34,\"\")","v":""},null,null,null,null,null,null,null,{"$f":"+E80*$E$34","v":{"$error":"#VALUE!"}}]
[null,"% das culturas de arroz na superfície agrícola elegível",null,null,{"$f":"IF(E30>15,+E$25/E$34,\"\")","v":""},null,null,null,null,null,null,null,{"$f":"+E81*$E$34","v":{"$error":"#VALUE!"}}]
[null,"% da produção de erva ou outras forrageiras herbáceas na superfície agrícola elegível",null,null,{"$f":"IF(E30>15,E$27/E$34,\"\")","v":""},null,null,null,null,null,null,null,{"$error":"#VALUE!"}]
[null,"soma das  percentagens",null,null,{"$f":"IFERROR(E80+E81+E82,\"\")","v":""},"Superficie arável remanescente p/outras utilizações",null,null,{"$f":"IF(E51>0.75,E34-(E83*E34)-E32,\"N/A\")","v":"N/A"},null,null,null,{"$f":"+IF(E30>15,  IF(E83>0.75,    IF( E34-E27-E25-E31-E32>30,  \"não isento\", \"isento\"  ),\"não isento\"),\"isento\")","v":"isento"}]
[]
[]
[]
[null,{"$f":"\"Área necessária para cumprir a obrigação de SIE (5% de \"&ROUND((E30+E36+E39),2)&\" hectares)\"","v":"Área necessária para cumprir a obrigação de SIE (5% de 0 hectares)"},null,null,{"$f":"IF((OR(M78=\"isento\",M83=\"isento\")),\"N/A\",(+E30+E36+E39)*0.05)","v":"N/A"}]
[]
[null,"Área declarada para efeitos de cumprimento da Obrigação das SIE",null,null,{"$f":"+E26+E36+(E24*0.7)+(E37*0.7)+E38+E39","v":0}]
[]
[null,"Diferença",null,null,{"$f":"IFERROR(+E89-E87,\"\")","v":""},{"$f":"IFERROR(IF(E91=\"\",\"Requisito não aplicável\",(IF(E91<0,\" As áreas declaradas de SIE não cumprem o requisito minimo de 5% das terras aráveis\",\" As áreas declaradas cumprem o requisito das SIE\"))),\"\")","v":"Requisito não aplicável"}]
[null,null,null,null,null,{"$f":"IF($E$30<=15,\" Esta obrigação não se aplica em explorações cuja sup. arável seja igual ou inferior a 15 ha\",\"\")","v":" Esta obrigação não se aplica em explorações cuja sup. arável seja igual ou inferior a 15 ha"}]
[]
[]
[]
["Calculo das Reduções"]
[null,"Base de calculo do greening",null,null,{"$f":"+E10","v":0}]
[]
[null,"Diversificação Culturas"]
[null,{"$f":"IF(E68>0,\"não isento\",\"isento\")","v":"isento"},null,null,{"$f":"IF(B100=\"isento\",0, \"calcula\")","v":0}]
[]
[null,"1 cultura",null,null,{"$f":"IF(AND(E68>=2,K62>75%),\"redução 75\",0)","v":0}]
[null,"2 culturas Principais",null,null,{"$f":"IF(K62+K63>0.95,\"A somas das % das duas culturas principais excede o limiar de 95%\",0)","v":0}]
[]
[]
[null,"EFA"]
[null,"Área necessária",null,null,{"$f":"+IF((OR(M78=\"isento\",M83=\"isento\")),0,+E30*0.05)","v":0}]
[]
[]
[null,"Pagamento greening",null,null,{"$f":"+E97-E100-E107","v":0}]
[]
[]
["© 2014-2016 IFAP, I.P Embora todos os esforços tenham sido feitos para garantir a precisão do simulador, a sua precisão pode não ser total e os agricultores não devem decidir com base nos resultados desta aplicação sem antes procurar aconselhamento técnico e/ou a leitura da legislação. Todos os direitos conferidos pela lei de direitos de autor, em virtude de convenções internacionais de copyright e todas as outras leis de propriedade intelectual são reservados pelo IFAP, I.P. Nenhuma parte do simulador pode ser reproduzida em qualquer forma, sem o consentimento prévio por escrito do IFAP, I.P."]

{"sheet":"Reduções","index":1,"n_rows":58,"n_cols":15,"rows_kept":58,"cut":false,"hidden":false,"merged":[[57,0,59,13],[2,0,5,13],[14,0,14,13],[24,0,24,13],[32,0,32,13],[45,0,45,13]]}
[]
[]
["Base de calculo do Greening \n(artigos 23º a 27º do Regulamento (EU) nº 640/2014)"]
[]
["Nº de Direitos",null,null,null,null,{"$f":"+simulador_greening!E10","v":0}]
[]
[]
[]
["Nº de diretos Atribuídos",null,null,null,null,{"$f":"+simulador_greening!E10","v":0}]
["Superfície Agrícola Elegível",null,null,null,null,{"$f":"+simulador_greening!E34","v":0}]
["Terra Arável",null,null,null,null,{"$f":"+simulador_greening!E30","v":0}]
["Pastagens Permanentes",null,null,null,null,{"$f":"+simulador_greening!E31","v":0}]
[]
[]
["Reduções - Diversificação de culturas"]
[]
[null," A- Área em excesso",null,"B- Área necessária p/outras Culturas",null,"Valor do rácio (A/B)"]
["Rácio 1 (cultura principal)",{"$f":"IF(simulador_greening!B53=\"Está isento das obrigações de diversificação cultural\",0,IF(+simulador_greening!O62<0,0,+simulador_greening!O62))","v":0},null,{"$f":"simulador_greening!E65*0.25","v":0},null,{"$f":"IF(simulador_greening!B53=\"Está isento das obrigações de diversificação cultural\",0,IF((simulador_greening!K62-0.75)/0.25<0,0,+(simulador_greening!K62-0.75)/0.25))","v":0}]
["Rácio 2 (soma das 2 culturas principais)",{"$f":"IF(simulador_greening!E68<>3,0,IF((simulador_greening!K64*F11)-(0.95*F11)<0,0,(simulador_greening!K64*F11)-(0.95*F11)))","v":0},null,{"$f":"+simulador_greening!E30*0.05","v":0},null,{"$f":"   IF(simulador_greening!B53=\"Está isento das obrigações de diversificação cultural\",0, IF(AND( simulador_greening!E68=3,(simulador_greening!K64-0.95)/0.05>0), (simulador_greening!K64-0.95)/0.05,0))","v":0}]
["Soma dos Rácios (máximo 1)",null,null,null,null,{"$f":"IF(F19+F18>1,1,F19+F18)","v":0}]
[null,null,null,null,null,null,null,null,null,null,null,null,null,null,"TA/TAR"]
["Redução do pagamento devido ao incumprimento das obrigações de Diversificação",null,null,null,null,{"$f":"+O22*0.5*F20","v":{"$error":"#VALUE!"}},null,null,null,null,null,null,null,null,{"$f":"IF(OR(simulador_greening!E58>=0.75,simulador_greening!E59>=0.75),simulador_greening!I60,F11)","v":"N/A"}]
[{"$f":"\"(Soma dos rácios x \"&O22&\" x 50%)\"","v":"(Soma dos rácios x N/A x 50%)"},{"$f":"+simulador_greening!F68","v":""},null,null,null,null,null,null,null,null,null,null,null,null,{"$f":"+IF(O22<F11,\"TAR\",\"TA\")","v":"TA"}]
[]
["Reduções - Pastagens permanentes"]
[]
[]
[]
["Área em incumprimento devido às Pastagens Permanentes"]
[]
[]
[]
["Reduções - Superfícies de interesse ecológico"]
[]
[]
[]
[{"$f":"\"Área necessária para cumprir a obrigação de SIE \"","v":"Área necessária para cumprir a obrigação de SIE "},null,null,null,null,{"$f":"ROUND(+simulador_greening!E87,2)","v":{"$error":"#VALUE!"}}]
["Área declarada para efeitos de cumprimento da obrigação de SIE",null,null,null,null,{"$f":"ROUND(+simulador_greening!E89,2)","v":0}]
["Diferença",null,null,null,null,{"$f":"IFERROR(+F37-F38,\"\")","v":""}]
["Rácio da diferença",null,null,null,null,{"$f":"IFERROR( IF(+F37-F38<0,0, +(F37-F38)/F37),\"\")","v":""}]
[]
[{"$f":"+\"Redução do pagamento devido ao incumprimento das SIE (rácio da diferença x \"&ROUND(+F11+simulador_greening!E36+simulador_greening!E39,2)&\" x 50%)\"","v":"Redução do pagamento devido ao incumprimento das SIE (rácio da diferença x 0 x 50%)"},null,null,null,null,{"$f":"IFERROR(+F40*0.5*(F11+simulador_greening!E36+simulador_greening!E39),0)","v":0}]
[]
[]
[]
["Resumo das Reduções"]
[]
["Base de Calculo do Greening sem reduções",null,null,null,null,{"$f":"MIN(F9,F10)","v":0}]
[]
["Redução do pagamento devido ao incumprimento das obrigações de Diversificação",null,null,null,null,{"$f":"-F22","v":{"$error":"#VALUE!"}}]
["Redução do pagamento devido ao incumprimento das obrigações de PP",null,null,null,null,{"$f":"-F29","v":0}]
["Redução do pagamento devido ao incumprimento das SIE",null,null,null,null,{"$f":"IFERROR(-F42,0)","v":0}]
["Total das reduções",null,null,null,null,{"$f":"+F50+F51+F52","v":{"$error":"#VALUE!"}}]
[]
["Pagamento",null,null,null,null,{"$f":"IF(F48+F53<0,0,F48+F53)","v":{"$error":"#VALUE!"}}]
[]
[]
["© 2014-2016 IFAP, I.P Embora todos os esforços tenham sido feitos para garantir a precisão do simulador, a sua precisão pode não ser total e os agricultores não devem decidir com base nos resultados desta aplicação sem antes procurar aconselhamento técnico e/ou a leitura da legislação. Todos os direitos conferidos pela lei de direitos de autor, em virtude de convenções internacionais de copyright e todas as outras leis de propriedade intelectual são reservados pelo IFAP, I.P. Nenhuma parte do simulador pode ser reproduzida em qualquer forma, sem o consentimento prévio por escrito do IFAP, I.P."]

{"sheet":"Lista de Culturas e SIE","index":2,"n_rows":79,"n_cols":5,"rows_kept":79,"cut":false,"hidden":false,"merged":[[65,0,69,0],[1,0,9,0],[10,0,13,0],[15,0,21,0],[22,0,25,0],[26,0,49,0],[51,0,62,0]]}
["Culturas","Descrição","Diversificação","Sup. Interesse Ecológico","Erva ou forrajeira herbácea"]
["Cereais","Trigo (Trigo Mole ou Trigo Duro)","X"]
[null,"Centeio","X"]
[null,"Cevada ","X"]
[null,"Aveia ","X"]
[null,"Milho","X"]
[null,"Triticale","X"]
[null,"Sorgo","X"]
[null,"Arroz","X"]
[null,"Outros Cereais ","X"]
["Oleaginosas","Linho não Têxtil","X"]
[null,"Girassol","X"]
[null,"Amendoim (*)","X","X"]
[null,"Outras oleaginosas","X"]
["Forrageiras temporárias","Forrageiras herbáceas anuais","X"]
["Cucurbitaceae","Melão","X"]
[null,"Meloa","X"]
[null,"Pepino","X"]
[null,"Melancia","X"]
[null,"Abóboras e aboborinhas","X"]
[null,"Courgette","X"]
[null,"Chuchu (Pimpinela)","X"]
["Solanaceae","Batata","X"]
[null,"Tomate","X"]
[null,"Pimento","X"]
[null,"Beringela","X"]
["Brassicacae","Lombardo","X"]
[null,"Couve penca","X"]
[null,"Couve portuguesa","X"]
[null,"Repolho","X"]
[null,"Couve-de-Bruxelas","X"]
[null,"Couve-Flor","X"]
[null,"Couve roxa","X"]
[null,"Coube branca","X"]
[null,"Couve coração de boi","X"]
[null,"Brócolos","X"]
[null,"Couve-Rábano","X"]
[null,"Couve chinesa","X"]
[null,"Couve-Nabiça","X"]
[null,"Nabo","X"]
[null,"Nabiça","X"]
[null,"Couve-Nabo","X"]
[null,"Rutabaga","X"]
[null,"Rábano","X"]
[null,"Rabanete","X"]
[null,"Agrião ","X"]
[null,"Rúcula","X"]
[null,"Mostarda","X"]
[null,"Couve forrageira","X"]
[null,"Colza","X"]
["Culturas hortícolas","Outras hortícolas","X"]
["Leguminosas fixadoras de azoto","Tremoceiro","X","X"]
[null,"Tremocilha","X","X"]
[null,"Grão de Bico","X","X"]
[null,"Ervilha","X","X"]
[null,"Fava","X","X"]
[null,"Ervilhaca","X","X"]
[null,"Feijão","X","X"]
[null,"Luzerna","X","X"]
[null,"Amendoim","X","X"]
[null,"Serradela","X","X"]
[null,"Trevos","X","X"]
[null,"Consociação de leguminosas fixadoras de azoto","X","X"]
["Leguminosas","Outras leguminosas secas","X"]
["Flores","Flores e Plantas Ornamentais","X"]
["Outras culturas temporárias","Tabaco ","X"]
[null,"Linho ","X"]
[null,"Algodão","X"]
[null,"Plantas Aromaticas, Medicinais e Condimentares","X"]
[null,"Inhame","X"]
["Pousio","Pousio ","X","X"]
[]
[]
["Notas"]
["No simulador deve apenas indicar uma única vez a mesma cultura"]
["Trigo mole e trigo duro são considerados a mesma cultura"]
["Milho silagem não é considerado erva ou forrageira herbácea (é cultura)"]
["Cultura out./inverno ou cultura prim./verão são consideradas culturas distintas mesmo que pertençam ao mesmo género"]
["(*) O Amendoim é também uma cultura fixadora de Azoto)"]